fUST/lending_fUST_20240120
["ID","MTS","AMOUNT","RATE_DAILY","PERIOD"]
[312243465,1705702232049,-95.15064245,0.00022559,2]
[312243471,1705702238067,-72.11864855,0.00022559,2]
[312243472,1705702238078,-167.269291,0.000232,2]
[312243474,1705702238088,-1197.20181474,0.0002384,2]
[312243491,1705702238097,-167.269291,0.00023841,2]
[312243493,1705702238249,-459.75942483,0.00024071,2]
[312243496,1705702238262,-1304.17323208,0.00024071,2]
[312243498,1705702238271,-5483.36584487,0.00024072,2]
[312243500,1705702238281,-1241.018516,0.00024073,2]
[312243502,1705702238291,-294.70821043,0.00024073,2]
[312243504,1705702238300,-155.86724935,0.00024073,2]
[312243506,1705702238309,-229.54905685,0.00024074,7]
[312243508,1705702238319,-167.269291,0.00024482,2]
[312243509,1705702238327,-154.95351395,0.0002457,2]
[312243511,1705702238337,-24900.0,0.00024571,2]
[312243513,1705702238346,-174.24179847,0.00024786,2]
[312243515,1705702238355,-175.98928689,0.000249,2]
[312243518,1705702238365,-701.41982279,0.00025,2]
[312243520,1705702238374,-3877.91239094,0.00025,2]
[312243522,1705702238384,-1045.65136347,0.00025,2]
[312243524,1705702238393,-297.89491392,0.00025,2]
[312243526,1705702238403,-218.91529232,0.00025281,2]
[312243527,1705702238412,-4719.78899734,0.00025296,2]
[312243530,1705702238422,-2093.74877759,0.00025297,2]
[312243532,1705702238431,-200.0,0.00026482,15]
[312243533,1705702238440,-348.0,0.00026482,15]
[312243535,1705702238449,-218.91529232,0.00026821,2]
[312243537,1705702238458,-155.0,0.000278,2]
[312243539,1705702238467,-290.08228321,0.00028,2]
[312243541,1705702238476,-218.91529232,0.0002836,2]
[312243544,1705702238486,-1370.99437628,0.00028508,2]
[312243545,1705702238495,-11694.12753353,0.0002851,2]
[312243548,1705702238505,-7015.13,0.00028719,3]
[312243549,1705702238514,-8418.15,0.00028729,3]
[312243552,1705702238523,-10101.78,0.00028739,3]
[312243553,1705702238533,-11772.26462134,0.00028749,2]
[312243556,1705702238542,-326.9284062,0.00028797,2]
[312243557,1705702238551,-802.76027922,0.00028798,2]
[312243559,1705702238560,-193.00215354,0.00028798,2]
[312243562,1705702238570,-155.23850692,0.00028798,2]
[312243564,1705702238579,-170.72767926,0.00028798,2]
[312243566,1705702238589,-3072.54572888,0.00028798,2]
[312243568,1705702238598,-20417.15991446,0.00028798,2]
[312243570,1705702238607,-207.79422098,0.00028798,2]
[312243572,1705702238617,-219.56301904,0.00028798,2]
[312243574,1705702238626,-155.37889533,0.00028799,2]
[312243576,1705702238635,-2985.75273705,0.00028799,7]
[312243577,1705702238643,-164.33543258,0.00028799,4]
[312243580,1705702238653,-153.06871281,0.00028799,4]
[312243581,1705702238662,-381.40311634,0.00028799,4]
[312243583,1705702238671,-500.0,0.00028799,4]
[312243585,1705702238681,-500.0,0.00028799,4]
[312243588,1705702238690,-500.0,0.00028799,4]
[312243589,1705702238700,-561.57219861,0.00028799,4]
[312243591,1705702238711,-500.0,0.00028799,4]
[312243593,1705702238720,-214.72453052,0.00028799,2]
[312243595,1705702238729,-500.0,0.00028799,2]
[312243597,1705702238739,-421.80075443,0.00028799,2]
[312243600,1705702238751,-382.32513335,0.00028799,2]
[312243602,1705702238761,-500.0,0.00028799,2]
[312243603,1705702238772,-500.0,0.00028799,2]
[312243605,1705702238780,-307.63353651,0.00028799,2]
[312243607,1705702238789,-500.0,0.00028799,2]
[312243609,1705702238798,-500.0,0.00028799,2]
[312243611,1705702238808,-500.0,0.00028799,2]
[312243614,1705702238824,-500.0,0.00028799,2]
[312243617,1705702238839,-500.0,0.00028799,2]
[312243619,1705702238848,-501.83714665,0.000288,3]
[312243621,1705702238857,-438240.07649795,0.000288,2]
[312243623,1705702238867,-24583.52528654,0.000288,2]
[312243625,1705702238876,-154.86062544,0.00029,2]
[312243627,1705702238886,-54792.97642603,0.00029,2]
[312243629,1705702238895,-1879.41245692,0.00029,2]
[312243631,1705702238905,-832.47642224,0.00029,2]
[312243633,1705702238914,-2036.31691242,0.00029,2]
[312243635,1705702238924,-200.0,0.0002913,15]
[312243637,1705702238934,-200.0,0.0002913,15]
[312243639,1705702238945,-368.0,0.0002913,15]
[312243641,1705702238955,-174.24179847,0.00029786,2]
[312243643,1705702238964,-82346.4378424,0.0002979,7]
[312243645,1705702238974,-1561.64177711,0.000299,2]
[312243647,1705702238983,-218.91529232,0.000299,2]
[312243649,1705702238993,-682.3767278,0.0003,3]
[312243652,1705702239002,-29944.40132639,0.0003,2]
[312243653,1705702239013,-30319.07639528,0.0003,2]
[312243654,1705702239022,-30479.54764278,0.0003,3]
[312243655,1705702239031,-2103.77243551,0.0003,4]
[312243656,1705702239040,-18583.86209402,0.0003,2]
[312243657,1705702239049,-699.75171641,0.0003,2]
[312243658,1705702239059,-298222.85179389,0.0003,30]
[312243659,1705702239068,-280.92218192,0.0003,30]
[312243660,1705702239077,-189.216389,0.00030137,2]
[312243661,1705702239086,-24883.50098459,0.00030601,5]
[312243662,1705702239095,-24639.24512407,0.00030601,5]
[312243675,1705702239354,-37809.81137644,0.00030601,5]
[312243717,1705702239726,-4593.6229753,0.00030601,5]
[312243719,1705702239737,-8361.97529616,0.00030601,5]
[312243722,1705702239753,-149.41701546,0.00030601,5]
[312243724,1705702239763,-3259.36935661,0.00030601,3]
[312243726,1705702239773,-313.0,0.0003067,30]
[312243728,1705702239783,-157.5,0.0003067,30]
[312243730,1705702239792,-150.5,0.0003067,30]
[312243732,1705702239802,-150.5,0.0003067,30]
[312243734,1705702239811,-313.0,0.0003068,30]
[312243736,1705702239820,-150.5,0.0003068,30]
[312243738,1705702239828,-150.5,0.0003068,30]
[312243740,1705702239837,-150.5,0.0003068,30]
[312243742,1705702239846,-313.0,0.0003069,30]
[312243744,1705702239855,-3224.19712259,0.000309,3]
[312243882,1705702241128,-3120.00779594,0.000309,3]
[312243893,1705702241244,-13469.89370164,0.000309,3]
[312243894,1705702241253,-19054.65280694,0.00031,2]
[312243909,1705702243050,-408.83999967,0.00031,2]
[312243922,1705702246107,-719.13124729,0.00031,2]
[312243926,1705703190104,-154.86062544,0.00022492,2]
[312243927,1705703190124,-155.54362941,0.00022492,2]
[312243928,1705703230096,-150.0,0.00020392,2]
[312243929,1705703230116,-873.86173983,0.00022487,2]
[312243930,1705703230136,-154.86062544,0.00022488,2]
[312243931,1705703230157,-154.86062544,0.00022489,2]
[312243932,1705703230177,-199.14321435,0.00022489,2]
[312243933,1705703230196,-42.59081481,0.00022489,2]
[312243934,1705703233091,-1028.85207195,0.00022489,2]
[312243936,1705703250112,-799.03046108,0.00022488,2]
[312243955,1705703432178,-0.00189011,0.00022451,5]
[312243967,1705703432273,-760.31601152,0.00022451,5]
[312243970,1705703432282,-154.86062544,0.00022452,2]
[312243973,1705703432291,-3744.1172956,0.00022452,2]
[312243976,1705703432300,-2996.33579383,0.00022453,2]
[312243979,1705703432309,-1763.93265691,0.00022454,2]
[312243982,1705703432319,-154.86062544,0.00022454,2]
[312243984,1705703432328,-849.76694483,0.00022455,2]
[312243986,1705703432337,-154.86062544,0.00022455,2]
[312243988,1705703432346,-1589.24944099,0.00022455,2]
[312243991,1705703432355,-1438.24066391,0.00022455,2]
[312243994,1705703432365,-977.54301686,0.00022456,2]
[312243997,1705703432374,-199.14321435,0.00022456,2]
[312244000,1705703432383,-175.98928689,0.00022459,2]
[312244003,1705703432392,-4040.05030934,0.00022488,2]
[312244006,1705703432402,-154.86062544,0.00022488,2]
[312244009,1705703432410,-683.87536543,0.00022488,2]
[312244012,1705703432419,-2760.32936808,0.00022495,5]
[312244014,1705703432429,-155.29191634,0.00022559,2]
[312244016,1705703432437,-167.029314,0.00022635,2]
[312244018,1705703432446,-823.86653966,0.000227,2]
[312244020,1705703432455,-163.683533,0.00022831,2]
[312244022,1705703432465,-24900.0,0.00023022,2]
[312244024,1705703432474,-649.276449,0.00023378,2]
[312244026,1705703432482,-167.029314,0.00023663,2]
[312244028,1705703432492,-4011.58774012,0.00024,2]
[312244030,1705703432501,-167.029314,0.00024692,2]
[312244032,1705703432510,-200.0,0.00024746,7]
[312244034,1705703432519,-4719.78899734,0.00025,2]
[312244036,1705703432528,-1045.65136347,0.00025,2]
[312244038,1705703432537,-167.029314,0.0002572,2]
[312244040,1705703432546,-272.42186695,0.00025938,2]
[312244042,1705703432555,-310.4009978,0.00025938,2]
[312244044,1705703432564,-323.39599469,0.00025938,2]
[312244046,1705703432574,-688.82444192,0.00025938,2]
[312244048,1705703432585,-873.86173983,0.00025938,2]
[312244050,1705703432597,-155.57473805,0.00025938,2]
[312244051,1705703432606,-703.25542982,0.00025939,2]
[312244053,1705703432616,-280.0,0.0002722,15]
[312244055,1705703432625,-620.32431623,0.00027619,2]
[312244057,1705703432634,-151.96901512,0.000289,2]
[312244059,1705703432644,-151.96901512,0.000289,2]
[312244061,1705703432654,-151.96901512,0.000289,2]
[312244063,1705703432664,-151.96901512,0.000289,2]
[312244065,1705703432673,-151.96901512,0.000289,2]
[312244067,1705703432683,-151.96901512,0.000289,2]
[312244069,1705703432693,-151.96901512,0.000289,2]
[312244071,1705703432703,-151.96901,0.000289,2]
[312244073,1705703432713,-154.86062544,0.00029,2]
[312244075,1705703432723,-620.01621581,0.00029,2]
[312244077,1705703432732,-1879.41245692,0.00029,2]
[312244079,1705703432740,-8386.47172491,0.0002942,3]
[312244255,1705703438474,-2817.39827509,0.0002942,3]
[312244256,1705703438483,-13444.64,0.0002943,3]
[312244257,1705703438492,-8923.48686391,0.0002944,3]
[312244287,1705703443296,-0.00317282,0.0002944,3]
[312244295,1705703446587,-154.86062544,0.00022488,2]
[312244296,1705703446599,-319.54200082,0.00022488,2]
[312244298,1705703446608,-4719.78899734,0.00025,2]
[312244299,1705703446618,-529.28968928,0.00029439,2]
[312244301,1705703446628,-241.40204372,0.00029439,2]
[312244303,1705703446638,-199.14321435,0.00029439,2]
[312244304,1705703446647,-849.41831623,0.00029439,2]
[312244305,1705703446658,-289.77248103,0.00029448,2]
[312244306,1705703446667,-9114.76945328,0.0002945,4]
[312244307,1705703446680,-391.0,0.00029942,15]
[312244308,1705703446690,-343.59389177,0.0003,3]
[312244309,1705703446699,-5999.99,0.0003,7]
[312244310,1705703446708,-366.0,0.0003,2]
[312244311,1705703446718,-153.0,0.00030137,2]
[312244312,1705703446727,-153.0,0.00030137,2]
[312244313,1705703446737,-153.0,0.00030137,2]
[312244314,1705703446746,-153.0,0.00030137,2]
[312244315,1705703446755,-153.0,0.00030137,2]
[312244316,1705703446766,-153.0,0.00030137,2]
[312244317,1705703446775,-153.0,0.00030137,2]
[312244318,1705703446784,-153.0,0.00030137,2]
[312244319,1705703446794,-153.0,0.00030137,2]
[312244320,1705703446804,-153.0,0.00030137,2]
[312244321,1705703446813,-199.0432224,0.00030137,2]
[312244322,1705703446822,-153.0,0.00030137,2]
[312244323,1705703446831,-153.0,0.00030137,2]
[312244324,1705703446840,-153.0,0.00030137,2]
[312244325,1705703446849,-153.0,0.00030137,2]
[312244326,1705703446858,-153.0,0.00030137,2]
[312244327,1705703446868,-153.0,0.00030137,2]
[312244328,1705703446877,-153.0,0.00030137,2]
[312244329,1705703446886,-153.0,0.00030137,2]
[312244330,1705703446895,-153.0,0.00030137,2]
[312244331,1705703446904,-199.0432224,0.00030137,2]
[312244332,1705703446913,-153.0,0.00030137,2]
[312244333,1705703446923,-153.0,0.00030137,2]
[312244334,1705703446932,-153.0,0.00030137,2]
[312244335,1705703446941,-189.216389,0.00030137,2]
[312244336,1705703446950,-620.00081079,0.0003045,2]
[312244337,1705703446959,-3000.0,0.000306,14]
[312244338,1705703446968,-219.0,0.0003066,30]
[312244339,1705703446977,-12527.87832402,0.00030662,5]
[312244340,1705703446986,-219.0,0.0003067,30]
[312244341,1705703446995,-6590.41708681,0.00030672,5]
[312244342,1705703447003,-219.0,0.0003068,30]
[312244343,1705703447012,-9578.45350997,0.00030682,5]
[312244344,1705703447022,-751.73788894,0.00030682,3]
[312244345,1705703447031,-166.3955963,0.00030687,4]
[312244346,1705703447040,-9718.98832929,0.00030688,4]
[312244347,1705703447049,-1798.42044971,0.00030688,4]
[312244348,1705703447058,-10999.44,0.0003089,3]
[312244349,1705703447068,-682.17509327,0.00030898,4]
[312244350,1705703447077,-199.56487084,0.00030898,4]
[312244351,1705703447086,-2135.26796294,0.00030898,4]
[312244352,1705703447095,-205.27949054,0.00030898,4]
[312244353,1705703447105,-500.0,0.00030899,2]
[312244354,1705703447114,-163.85362858,0.00030899,2]
[312244355,1705703447123,-584.58012191,0.00030899,2]
[312244356,1705703447133,-180.7717519,0.00030899,2]
[312244357,1705703447142,-500.0,0.00030899,2]
[312244358,1705703447152,-500.0,0.00030899,2]
[312244359,1705703447161,-500.0,0.00030899,2]
[312244360,1705703447171,-163.45847843,0.00030899,4]
[312244361,1705703447180,-500.0,0.00030899,4]
[312244362,1705703447189,-500.0,0.00030899,4]
[312244363,1705703447198,-536.94331917,0.00030899,4]
[312244364,1705703447208,-465.2364828,0.00030899,2]
[312244365,1705703447217,-250.91857333,0.000309,3]
[312244366,1705703447226,-35354.28616183,0.000309,2]
[312244367,1705703447786,-336.70442301,0.00022488,2]
[312244368,1705703447798,-2590.63826074,0.00022488,2]
[312244369,1705703447808,-410.83858145,0.00030899,4]
[312244370,1705703447817,-500.0,0.00030899,4]
[312244371,1705703447826,-500.0,0.00030899,2]
[312244372,1705703447836,-382.67178203,0.00030899,4]
[312244373,1705703447845,-650.77830683,0.00030899,2]
[312244374,1705703447854,-5359.57306895,0.000309,2]
[312244376,1705704025264,3971.58661394,0.00020439,7]
[312244377,1705704049256,992.74547868,0.0002044,7]
[312244378,1705704051831,200.0,0.0002146,7]
[312244379,1705704203276,3001.78927518,0.00019566,7]
[312244380,1705704240534,-10528.8773707,0.00018557,2]
[312244381,1705704240556,-15481.1226293,0.00018558,2]
[312244382,1705704259133,442.6655258,0.00018554,90]
[312244383,1705704286264,244.484132,0.00017557,2]
[312244384,1705704307297,302.66994715,0.00017994,2]
[312244385,1705704308547,199.79943625,0.00016699,2]
[312244386,1705704341089,-1042.23653843,0.00018543,2]
[312244387,1705704351539,683.87536543,0.00016699,2]
[312244388,1705704353338,280.0,0.00021417,7]
[312244389,1705704355810,2637.3573223,0.00017547,2]
[312244390,1705704356854,154.86062544,0.00016699,2]
[312244391,1705704357080,10295.56996507,0.00016699,2]
[312244392,1705704359741,4040.05030934,0.00016699,2]
[312244393,1705704363545,683.08884662,0.00016699,2]
[312244394,1705704370853,154.86062544,0.00016699,2]
[312244395,1705704373743,4040.05030934,0.00016699,2]
[312244396,1705704377117,9427.48771311,0.00016699,2]
[312244397,1705704386880,271.71484039,0.00016699,2]
[312244398,1705704391745,4040.05030934,0.00016699,2]
[312244399,1705704400868,620.37329655,0.00016699,2]
[312244400,1705704408851,37693.18091214,0.00017539,2]
[312244401,1705704408877,2623.20083386,0.00017539,2]
[312244402,1705704409857,1837.79639793,0.00016699,2]
[312244403,1705704430214,174.24024334,0.00018434,2]
[312244404,1705704435656,630.3303575,0.00018469,2]
[312244405,1705704445897,5000.0,0.00017974,2]
[312244406,1705704451836,734.43216737,0.00018434,2]
[312244407,1705704461878,3458.15213898,0.00017974,2]
[312244408,1705704508332,284046.50562757,0.00017974,2]
[312244409,1705704508842,157.42490565,0.00017974,2]
[312244410,1705704512847,154.86062544,0.00017974,2]
[312244411,1705704516769,5322.4661345,0.00017548,2]
[312244412,1705704523451,3216.76087832,0.00017974,2]
[312244413,1705704524331,3643.82968954,0.00017974,2]
[312244414,1705704556103,-7956.19039627,0.0001797,2]
[312244415,1705704556123,-19691.09749066,0.0001797,2]
[312244416,1705704556143,-272.42186695,0.0001797,2]
[312244417,1705704556164,-154.86062544,0.0001797,2]
[312244418,1705704556184,-154.86062544,0.00017971,2]
[312244419,1705704556205,-875.93915164,0.00017971,2]
[312244420,1705704556225,-3484.00738958,0.00017971,2]
[312244421,1705704556244,-521.84055297,0.00017971,2]
[312244422,1705704556264,-561.34972168,0.00017972,2]
[312244423,1705704556285,-154.86062544,0.00017972,2]
[312244424,1705704556305,-265.32889701,0.00017972,2]
[312244425,1705704556327,-1293.1158294,0.00017972,2]
[312244426,1705704556348,-10528.8773707,0.00017972,2]
[312244427,1705704556368,-676.96759119,0.00017972,2]
[312244428,1705704559119,-154.86062544,0.00017969,2]
[312244429,1705704559141,-7999.96196843,0.00017969,2]
[312244430,1705704559163,-154.86062544,0.00017969,2]
[312244431,1705704559182,-154.86062544,0.00017969,2]
[312244432,1705704559202,-787.34773645,0.0001797,2]
[312244433,1705704559226,-2451.25749306,0.00017972,2]
[312244434,1705704559248,-154.86062544,0.00017972,2]
[312244435,1705704559401,-470.42511817,0.00017973,2]
[312244436,1705704559422,-4698.66437663,0.00017973,2]
[312244437,1705704559442,-452.47030798,0.00017973,2]
[312244438,1705704559460,-977.54301686,0.00017973,2]
[312244439,1705704559479,-1589.24944099,0.00017973,2]
[312244440,1705704559499,-98788.89940592,0.00017974,2]
[312244441,1705704559519,-226.1052957,0.00017974,2]
[312244442,1705704559540,-1093.21433764,0.00017974,2]
[312244443,1705704559559,-154.86062544,0.00017974,2]
[312244444,1705704559579,-1468.00454349,0.00018424,2]
[312244445,1705704559599,-2813.43161407,0.00018424,2]
[312244446,1705704559620,-903.13044819,0.00018424,2]
[312244447,1705704559642,-36946.17544842,0.00018424,2]
[312244448,1705704559663,-262.19709632,0.00018424,2]
[312244449,1705704559683,-760.31790163,0.00018424,2]
[312244450,1705704559705,-20891.20723106,0.00018424,2]
[312244451,1705704559726,-260.72897054,0.00018425,2]
[312244452,1705704559744,-19857.05526045,0.00018425,2]
[312244453,1705704559763,-230.71907883,0.00018425,2]
[312244454,1705704559782,-1740.08077845,0.00018425,2]
[312244455,1705704559802,-178.65716453,0.00018426,2]
[312244456,1705704559822,-4811.28224285,0.00018426,2]
[312244457,1705704559841,-20864.2178903,0.00018426,2]
[312244458,1705704559860,-239.16358008,0.00018426,2]
[312244459,1705704559879,-6523.97392348,0.00018426,2]
[312244460,1705704559899,-166.58308548,0.00018427,2]
[312244461,1705704559919,-21675.6082244,0.00018427,2]
[312244462,1705704559938,-154.86062544,0.00018427,2]
[312244463,1705704559957,-14382.67505787,0.00018427,2]
[312244464,1705704559977,-873.86173983,0.00018428,2]
[312244465,1705704559998,-154.86062544,0.00018428,2]
[312244466,1705704560017,-4040.05030934,0.00018434,2]
[312244467,1705704560037,-182.50978617,0.00018434,2]
[312244468,1705704560056,-228.15716302,0.00018434,2]
[312244469,1705704560075,-165.62359769,0.00018434,2]
[312244470,1705704560095,-1407.36890809,0.00018529,2]
[312244471,1705704560115,-154.9690062,0.0001853,2]
[312244472,1705704560134,-588.02510206,0.00018535,2]
[312244473,1705704560153,-1531.63577097,0.00018537,2]
[312244474,1705704560173,-1241.018516,0.00018554,2]
[312244475,1705704560192,-5483.36584487,0.00018554,2]
[312244476,1705704560212,-9418.8773707,0.00018558,2]
[312244477,1705704560233,-198.7007568,0.00018569,2]
[312244478,1705704560253,-279.98947194,0.000189,2]
[312244479,1705704560274,-200.0,0.0001947,2]
[312244480,1705704560294,-1113.73927963,0.000195,2]
[312244481,1705704560313,-323.12147464,0.00019564,2]
[312244482,1705704560334,-191.16884209,0.00019565,2]
[312244483,1705704560354,-2071.696278,0.00019565,2]
[312244484,1705704560373,-255.3140191,0.00019565,2]
[312244485,1705704560394,-1118.71561509,0.00019565,2]
[312244486,1705704560413,-155.39601086,0.00019566,2]
[312244487,1705704560433,-2006.86411987,0.00019566,2]
[312244488,1705704560454,-732.09851869,0.00019566,2]
[312244489,1705704560473,-13636.91051469,0.00019566,2]
[312244490,1705704560497,-154.87609912,0.00019566,2]
[312244491,1705704560517,-155.42257313,0.00019566,2]
[312244492,1705704560537,-154.87609912,0.00019566,2]
[312244493,1705704560556,-260.99609825,0.00019566,2]
[312244494,1705704560575,-218.87556881,0.00019566,2]
[312244495,1705704560595,-154.87609912,0.00019566,2]
[312244496,1705704560615,-399.87965736,0.00019566,2]
[312244497,1705704560636,-596.08682542,0.00019566,2]
[312244498,1705704560655,-206.14362626,0.00019567,2]
[312244499,1705704560674,-1583.5799217,0.00019596,2]
[312244500,1705704560694,-1160.4071993,0.00019596,2]
[312244501,1705704560714,-678.20873721,0.0002,2]
[312244502,1705704560733,-154.95351395,0.0002,2]
[312244503,1705704560752,-1197.20181474,0.0002,2]
[312244504,1705704560772,-190.55418585,0.0002,2]
[312244505,1705704560791,-195.19726849,0.0002,2]
[312244506,1705704560811,-2996.33579383,0.0002,2]
[312244507,1705704560830,-2170.1294719,0.0002,2]
[312244508,1705704560850,-849.59512114,0.0002,2]
[312244509,1705704560870,-154.9690062,0.0002,2]
[312244510,1705704560890,-1763.93265691,0.00021,2]
[312244511,1705704560916,-62.52283521,0.00021,2]
[312244512,1705704560997,-154.86062544,0.00017969,2]
[312244513,1705704561017,-264.78368169,0.00021,2]
[312244514,1705704561037,-175.587536,0.00021167,2]
[312244515,1705704561246,-154.86062544,0.0002146,2]
[312244516,1705704561265,-154.92253873,0.0002146,2]
[312244517,1705704561499,294.70821043,0.00017969,2]
[312244518,1705704562093,-189.50173679,0.00021497,2]
[312244519,1705704563285,154.86062544,0.00017968,2]
[312244520,1705704563444,873.86173983,0.00017968,2]
[312244521,1705704567102,-440.82862071,0.00021497,2]
[312244522,1705704567125,-166.666666,0.00021918,2]
[312244523,1705704567146,-3041.75595042,0.00022,2]
[312244524,1705704568536,2250.56517014,0.00018054,2]
[312244525,1705704573289,21675.6082244,0.00018238,2]
[312244526,1705704573703,19857.05526045,0.00018422,2]
[312244527,1705704574062,2083.05150517,0.0002,2]
[312244528,1705704574102,1763.93265691,0.00021,2]
[312244529,1705704574251,229.98970099,0.00017974,2]
[312244530,1705704574858,2331.83786078,0.00018422,2]
[312244597,1705704632424,-0.26356322,0.00017974,2]
[312244598,1705704632435,-154.59706222,0.00017974,2]
[312244599,1705704632444,-5668.12410765,0.00018422,2]
[312244600,1705704632453,-3262.6121661,0.00018422,2]
[312244601,1705704632462,-2082.71954556,0.0002,2]
[312244602,1705704632471,-1468.00454349,0.00020546,2]
[312244603,1705704632480,-156.0841207,0.00021494,2]
[312244604,1705704632489,-787.34773645,0.00021494,2]
[312244605,1705704632497,-373.23231355,0.00021494,2]
[312244606,1705704632506,-261.8915775,0.00021495,2]
[312244607,1705704632515,-294.70821043,0.00021495,2]
[312244608,1705704632524,-903.13044819,0.00021495,2]
[312244609,1705704632532,-155.53466181,0.00021496,2]
[312244610,1705704632541,-1601.245366,0.00021819,2]
[312244611,1705704632550,-875.64011299,0.00021999,2]
[312244612,1705704632559,-155.99112546,0.00021999,2]
[312244613,1705704632568,-416.3928924,0.00021999,2]
[312244615,1705704632577,-521.84055297,0.00021999,2]
[312244617,1705704632587,-294.90553796,0.00021999,2]
[312244619,1705704632596,-265.32889701,0.00021999,2]
[312244621,1705704632605,-154.86062544,0.00021999,2]
[312244623,1705704632614,-154.86062544,0.00022,2]
[312244625,1705704632623,-293.28439443,0.00022,4]
[312244627,1705704632632,-3963.07176261,0.00022106,2]
[312244629,1705704632642,-3000.0,0.00022107,2]
[312244630,1705704632651,-425.69649895,0.0002243,2]
[312244632,1705704632660,-166.666666,0.00022431,2]
[312244634,1705704632669,-3629.7119663,0.00022448,2]
[312244635,1705704632678,-154.86062544,0.00022452,2]
[312244637,1705704632687,-164.49774557,0.00022452,2]
[312244639,1705704632696,-155.08684864,0.00022452,2]
[312244641,1705704632705,-198.20629725,0.00022452,2]
[312244643,1705704632714,-195.04845331,0.00022452,2]
[312244645,1705704632724,-246.90614662,0.00022452,2]
[312244647,1705704632733,-357.25188437,0.00022452,2]
[312244649,1705704632742,-362.82536641,0.00022453,2]
[312244650,1705704632752,-823.86653966,0.00022943,2]
[312244652,1705704632761,-166.666666,0.00022944,2]
[312244654,1705704632770,-476.07740434,0.00023288,2]
[312244656,1705704632779,-500.0,0.00023288,2]
[312244658,1705704632789,-336.7663485,0.00023288,2]
[312244660,1705704632798,-500.0,0.00023288,2]
[312244662,1705704632808,-465.2364828,0.00023288,2]
[312244664,1705704632816,-500.0,0.00023288,2]
[312244666,1705704632826,-500.0,0.00023288,2]
[312244668,1705704632835,-217.2669841,0.00023288,2]
[312244669,1705704632844,-237.34132861,0.00023288,2]
[312244670,1705704632853,-500.0,0.00023288,2]
[312244671,1705704632863,-500.0,0.00023288,2]
[312244672,1705704632872,-500.0,0.00023288,2]
[312244673,1705704632882,-500.0,0.00023288,2]
[312244674,1705704632891,-458.23188645,0.00023288,2]
[312244675,1705704632900,-500.0,0.00023288,2]
[312244676,1705704632909,-179.31674602,0.00023288,2]
[312244677,1705704632918,-424.80201181,0.00023288,2]
[312244678,1705704632927,-500.0,0.00023288,2]
[312244682,1705704633051,-478.23834925,0.00023288,2]
[312244683,1705704633062,-279.24053161,0.00023288,2]
[312244684,1705704633071,-454.33124677,0.00023288,2]
[312244685,1705704633081,-392.89407325,0.00023288,2]
[312244686,1705704633089,-444.33891071,0.00023288,2]
[312244687,1705704633098,-500.0,0.00023288,2]
[312244688,1705704633108,-500.0,0.00023288,2]
[312244689,1705704633117,-500.0,0.00023288,2]
[312244690,1705704633126,-500.0,0.00023288,2]
[312244691,1705704633135,-166.666666,0.00023456,2]
[312244692,1705704633144,-391.0,0.00023559,7]
[312244693,1705704633153,-279.98947194,0.000239,2]
[312244694,1705704633163,-166.666666,0.00023969,2]
[312244695,1705704633172,-166.666666,0.00024482,2]
[312244696,1705704633181,-7956.19039627,0.00024524,2]
[312244697,1705704633190,-2852.04753117,0.00024525,2]
[312244738,1705704638591,-4040.05030934,0.00018422,2]
[312244740,1705704638602,-4698.66437663,0.00023287,2]
[312244741,1705704638612,-230.71907883,0.00024481,2]
[312244743,1705704638622,-154.86062544,0.00024481,2]
[312244745,1705704638632,-20891.20723106,0.00024523,2]
[312244748,1705704638642,-1159.54020895,0.00024525,2]
[312244749,1705704638651,-630.3303575,0.00024526,2]
[312244751,1705704638660,-556.45383704,0.00024656,2]
[312244754,1705704638670,-498.00832139,0.0002495,5]
[312244757,1705704638679,-677.25499859,0.00025,2]
[312244760,1705704638688,-154.86062544,0.00025,2]
[312244763,1705704638699,-4719.78899734,0.00025913,2]
[312244766,1705704638709,-1045.65136347,0.00025914,2]
[312244769,1705704638719,-200.0,0.00025915,7]
[312244771,1705704638728,-348.0,0.00025915,7]
[312244773,1705704638737,-470.42511817,0.00026024,2]